bitfinex-derivatives/quotes_BTCF0:USTF0_20241029
["timestamp","ask_amount","ask_price","bid_price","bid_amount"]
[1730175639163,0.0431629,71191.0,71184.0,0.0718]
[1730175639370,0.0431629,71190.0,71184.0,0.0718]
[1730175639566,0.0431629,71189.0,71184.0,0.0718]
[1730175639767,0.0431629,71188.0,71184.0,0.0718]
[1730175640067,0.0431629,71187.0,71184.0,0.0688]
[1730175640266,0.04316204,71186.0,71185.0,0.0671]
[1730175641871,0.04416204,71186.0,71185.0,0.0761]
[1730175642370,0.04316204,71186.0,71185.0,0.0671]
[1730175642578,0.04516204,71186.0,71185.0,0.0841]
[1730175643371,0.04516204,71186.0,71185.0,0.0831]
[1730175643869,0.04416204,71186.0,71185.0,0.0731]
[1730175644172,0.04516204,71186.0,71185.0,0.0841]
[1730175644566,0.04516204,71186.0,71185.0,0.4459]
[1730175645070,0.04516204,71186.0,71185.0,0.516199]
[1730175645272,0.04516146,71186.0,71185.0,0.516199]
[1730175646375,0.001,71186.0,71185.0,0.508199]
[1730175646580,0.002,71186.0,71185.0,0.518199]
[1730175646875,0.002,71186.0,71185.0,0.4479]
[1730175647072,0.001,71186.0,71185.0,0.4379]
[1730175647261,0.002,71186.0,71185.0,0.4499]
[1730175654180,0.04516267,71186.0,71185.0,0.4499]
[1730175658683,0.04516267,71186.0,71185.0,0.520199]
[1730175661283,0.002,71186.0,71185.0,0.520199]
[1730175664082,0.002,71186.0,71185.0,1.01257341]
[1730175664383,0.002,71186.0,71185.0,0.941639]
[1730175664585,0.002,71186.0,71185.0,0.520199]
[1730175665185,0.002,71186.0,71185.0,0.941639]
[1730175665700,0.002,71186.0,71185.0,0.520199]
[1730175666688,0.002,71186.0,71185.0,0.4499]
[1730175666874,0.14323241,71186.0,71185.0,0.4499]
[1730175671694,0.002,71186.0,71185.0,0.4499]
[1730175673200,0.002,71186.0,71185.0,0.520199]
[1730175676304,0.04516094,71186.0,71185.0,0.520199]
[1730175677102,0.04416094,71186.0,71185.0,0.518199]
[1730175677301,0.04416094,71186.0,71185.0,0.516199]
[1730175677699,0.04416113,71186.0,71185.0,0.516199]
[1730175679297,0.04416113,71186.0,71185.0,0.508199]
[1730175679504,0.25732795,71186.0,71185.0,0.3788]
[1730175679698,0.30776116,71186.0,71185.0,0.3788]
[1730175679901,0.23682675,71186.0,71185.0,0.3788]
[1730175680714,0.23582675,71186.0,71185.0,0.3688]
[1730175680917,0.23582675,71186.0,71185.0,0.3668]
[1730175681119,0.23582675,71186.0,71185.0,0.3708]
[1730175682811,0.23582939,71186.0,71185.0,0.3708]
[1730175683212,0.3067638,71186.0,71185.0,0.3668]
[1730175683413,0.3067638,71186.0,71185.0,0.3708]
[1730175684313,0.21316682,71186.0,71185.0,0.3708]
[1730175685623,0.21316682,71186.0,71185.0,0.01]
[1730175688929,0.14186882,71186.0,71185.0,0.001]
[1730175689219,0.21216682,71186.0,71185.0,0.001]
[1730175689420,0.14186882,71186.0,71184.0,0.3608]
[1730175689625,0.070299,71185.0,71184.0,0.3608]
[1730175691321,0.1134647,71185.0,71184.0,0.3608]
[1730175691525,0.16390348,71185.0,71184.0,0.3608]
[1730175691824,0.16390348,71185.0,71184.0,0.3618]
[1730175692326,0.16390348,71185.0,71184.0,0.3628]
[1730175694329,0.09360448,71185.0,71184.0,0.3628]
[1730175694828,0.0431657,71185.0,71184.0,0.3628]
[1730175696522,0.0431657,71185.0,71184.0,0.50403441]
[1730175699022,0.0431657,71185.0,71184.0,0.52910752]
[1730175699220,0.18212408,71187.0,71186.0,0.070298]
[1730175699420,0.18212408,71187.0,71186.0,0.14123241]
[1730175699622,0.070288,71196.0,71190.0,0.070294]
[1730175699922,0.070288,71196.0,71193.0,0.3608]
[1730175700127,0.070288,71196.0,71194.0,0.0637]
[1730175701828,0.075288,71196.0,71194.0,0.0637]
[1730175702227,0.070289,71195.0,71194.0,0.0637]
[1730175704115,0.070289,71195.0,71194.0,0.0647]
[1730175704630,0.14122341,71195.0,71194.0,0.0647]
[1730175713031,0.07093441,71197.0,71194.0,0.13563441]
[1730175713332,0.07093441,71197.0,71194.0,0.09017516]
[1730175714451,0.04315621,71196.0,71194.0,0.0647]
[1730175714629,0.04315621,71195.0,71194.0,0.0637]
[1730175715846,0.04315621,71195.0,71194.0,0.0647]
[1730175716035,0.11344521,71195.0,71194.0,0.0647]
[1730175720943,0.11344921,71195.0,71194.0,0.0647]
[1730175721247,0.1638769,71195.0,71194.0,0.0647]
[1730175721549,0.070289,71195.0,71194.0,0.0647]
[1730175722941,0.18438337,71195.0,71194.0,0.001]
[1730175723144,0.070299,71185.0,71184.0,0.3608]
[1730175723343,0.14123341,71185.0,71184.0,0.3608]
[1730175724749,0.14123341,71185.0,71184.0,0.3658]
[1730175725343,0.070299,71185.0,71184.0,0.3658]
[1730175725544,0.14123341,71185.0,71184.0,0.3628]
[1730175725946,0.070299,71185.0,71184.0,0.3628]
[1730175727254,0.14123341,71185.0,71184.0,0.3628]
[1730175727656,0.14123341,71185.0,71184.0,0.3648]
[1730175727958,0.14223341,71185.0,71184.0,0.3718]
[1730175728649,0.14223341,71185.0,71184.0,0.3728]
[1730175729346,0.0945944,71185.0,71184.0,0.3728]
[1730175729555,0.04416105,71185.0,71184.0,0.3728]
[1730175732453,0.11509546,71185.0,71184.0,0.3728]
[1730175734056,0.11509546,71185.0,71184.0,0.3718]
[1730175735055,0.16552881,71185.0,71184.0,0.3718]
[1730175736156,0.23582781,71185.0,71184.0,0.3718]
[1730175736462,0.14223341,71185.0,71184.0,0.3718]
[1730175744567,0.1853961,71185.0,71184.0,0.3718]
[1730175745258,0.23583173,71185.0,71184.0,0.3718]
[1730175745569,0.36903173,71185.0,71184.0,0.3718]
[1730175746361,0.29809732,71185.0,71184.0,0.3718]
[1730175746569,0.48070757,71185.0,71184.0,0.3718]
[1730175746964,0.29809732,71185.0,71184.0,0.3718]
[1730175747765,0.23229732,71185.0,71184.0,0.3718]
[1730175748070,0.16489732,71185.0,71184.0,0.3718]
[1730175749375,0.23583173,71185.0,71184.0,0.3718]
[1730175750269,0.2358347,71185.0,71184.0,0.3718]
[1730175751574,0.14223341,71185.0,71184.0,0.3718]
[1730175752573,0.14223341,71185.0,71184.0,0.012]
[1730175756175,0.14223341,71185.0,71184.0,0.007]
[1730175757172,0.14223341,71185.0,71184.0,0.009]
[1730175757374,0.14123341,71185.0,71184.0,0.004]
[1730175757969,0.14123341,71185.0,71184.0,0.002]
[1730175758177,0.14123341,71185.0,71184.0,0.006]
[1730175759884,0.18439839,71185.0,71184.0,0.006]
[1730175760785,0.070299,71185.0,71184.0,0.006]
[1730175760992,0.070299,71185.0,71184.0,0.002]
[1730175761197,0.070299,71185.0,71184.0,0.006]
[1730175765090,0.11346456,71185.0,71184.0,0.006]
[1730175766593,0.16390328,71185.0,71184.0,0.006]
[1730175769396,0.12073772,71185.0,71184.0,0.006]
[1730175769596,0.16390338,71185.0,71184.0,0.006]
[1730175774602,0.070299,71185.0,71184.0,0.006]
[1730175778404,0.11346563,71185.0,71184.0,0.006]
[1730175779194,0.070299,71185.0,71184.0,0.006]
[1730175780490,0.11346545,71185.0,71184.0,0.006]
[1730175781602,0.16390542,71185.0,71184.0,0.006]
[1730175783393,0.18439986,71185.0,71184.0,0.006]
[1730175784504,0.23483983,71185.0,71184.0,0.006]
[1730175785303,0.34303983,71185.0,71184.0,0.006]
[1730175789694,0.24943341,71185.0,71184.0,0.006]
[1730175789995,0.178499,71185.0,71184.0,0.006]
[1730175790393,0.22166541,71185.0,71184.0,0.006]
[1730175790599,0.178499,71185.0,71184.0,0.006]
[1730175796408,0.22166572,71185.0,71184.0,0.006]
[1730175797604,0.22166578,71185.0,71184.0,0.006]
[1730175797804,0.64310578,71185.0,71184.0,0.006]
[1730175798111,1.00390578,71185.0,71184.0,0.006]
[1730175798505,1.05435145,71185.0,71184.0,0.006]
[1730175798806,1.00390578,71185.0,71184.0,0.006]
[1730175803815,1.0543526,71185.0,71184.0,0.006]
[1730175805915,0.5247126,71185.0,71184.0,0.006]
[1730175806215,0.0936136,71185.0,71184.0,0.3668]
[1730175806411,0.04316678,71185.0,71184.0,0.3668]
[1730175806616,0.05044682,71190.0,71184.0,0.3668]
[1730175806617,0.07093441,71187.0,71184.0,0.3668]
[1730175807608,0.07093441,71187.0,71184.0,0.3628]
[1730175807817,0.07093441,71187.0,71184.0,0.3648]
[1730175808515,0.07093441,71186.0,71184.0,0.3628]
[1730175808715,0.05044682,71186.0,71184.0,0.3628]
[1730175808911,0.07093441,71187.0,71184.0,0.3628]
[1730175809308,0.07093441,71186.0,71184.0,0.3628]
[1730175809509,0.05044682,71186.0,71184.0,0.3628]
[1730175809714,0.14123241,71186.0,71184.0,0.3638]
[1730175809916,0.05044682,71185.0,71184.0,0.3638]
[1730175810614,0.12074582,71185.0,71184.0,0.3638]
[1730175810818,0.12074582,71185.0,71184.0,0.3648]
[1730175811619,0.48154582,71185.0,71184.0,0.006]
[1730175812216,0.52471173,71185.0,71184.0,0.006]
[1730175812413,0.63275173,71185.0,71184.0,0.006]
[1730175812914,0.63575173,71185.0,71184.0,0.004]
[1730175813718,0.63575173,71185.0,71174.0,0.0656]
[1730175813719,0.52771173,71185.0,71174.0,0.0656]
[1730175814017,0.07093441,71175.0,71174.0,0.0656]
[1730175814223,0.21217782,71175.0,71174.0,0.0656]
[1730175814423,0.14124341,71175.0,71174.0,0.0656]
[1730175815727,0.14224341,71175.0,71174.0,0.0796]
[1730175816320,0.21317782,71175.0,71174.0,0.014]
[1730175818222,0.59991588,71175.0,71174.0,0.014]
[1730175818417,0.42152,71174.0,71147.0,0.3608]
[1730175818623,0.07093441,71158.0,71155.0,0.0687]
[1730175818823,0.070327,71157.0,71155.0,0.0687]
[1730175819127,0.070327,71156.0,71155.0,0.0687]
[1730175820017,0.14126141,71156.0,71155.0,0.0687]
[1730175820318,0.14126141,71156.0,71155.0,0.0717]
[1730175820720,0.14226141,71156.0,71155.0,0.0727]
[1730175822028,0.14226141,71156.0,71155.0,0.0757]
[1730175823324,0.001,71156.0,71155.0,0.0757]
[1730175823826,0.18309869,71156.0,71155.0,0.06152001]
[1730175824021,0.22628146,71156.0,71155.0,0.06152001]
[1730175824222,0.09464167,71156.0,71155.0,0.06152001]
[1730175824419,0.04418277,71156.0,71155.0,0.06152001]
[1730175824826,0.11511718,71156.0,71155.0,0.06152001]
[1730175825222,0.09464167,71156.0,71155.0,0.06152001]
[1730175825422,0.11511718,71156.0,71155.0,0.06152001]
[1730175825622,0.04418277,71156.0,71155.0,0.06152001]
[1730175826132,0.09464167,71156.0,71155.0,0.06152001]
[1730175826729,0.001,71156.0,71155.0,0.06152001]
[1730175829327,0.001,71156.0,71155.0,0.13245442]
[1730175829920,0.001,71156.0,71155.0,0.20278242]
[1730175830125,0.07093441,71162.0,71160.0,0.07093441]
[1730175830330,0.07093441,71165.0,71160.0,0.07093441]
[1730175830733,0.07093441,71162.0,71160.0,0.07093441]
[1730175831331,0.07393441,71162.0,71160.0,0.07093441]
[1730175832737,0.003,71162.0,71160.0,0.07093441]
[1730175833033,0.003,71162.0,71160.0,0.07593441]
[1730175833335,0.002,71162.0,71161.0,0.0668]
[1730175834124,0.001,71162.0,71161.0,0.0668]
[1730175834325,0.002,71162.0,71161.0,0.0668]
[1730175834823,0.22596536,71162.0,71161.0,0.0728]
[1730175835039,0.27014212,71162.0,71161.0,0.0798]
[1730175836133,0.11611117,71162.0,71161.0,0.0798]
[1730175836336,0.27014212,71162.0,71161.0,0.0798]
[1730175836629,0.11611117,71162.0,71161.0,0.0798]
[1730175836826,0.11611117,71162.0,71161.0,0.0788]
[1730175838127,0.22696536,71162.0,71161.0,0.0788]
[1730175838443,0.27014212,71162.0,71161.0,0.0788]
[1730175838931,0.19920758,71162.0,71161.0,0.0788]
[1730175839237,0.04517663,71162.0,71161.0,0.0788]
[1730175839533,0.15603095,71162.0,71161.0,0.0788]
[1730175839729,0.19920758,71162.0,71161.0,0.0788]
[1730175840430,0.09562666,71162.0,71161.0,0.0788]
[1730175840631,0.04517663,71162.0,71161.0,0.0788]
[1730175841840,0.14325541,71162.0,71161.0,0.0788]
[1730175842229,0.14325541,71162.0,71161.0,0.012]
[1730175846836,0.07293441,71162.0,71161.0,0.012]
[1730175847236,0.002,71162.0,71161.0,0.012]
[1730175847743,0.07293441,71162.0,71161.0,0.012]
[1730175851243,0.002,71162.0,71161.0,0.012]
[1730175856632,0.04517502,71162.0,71161.0,0.012]
[1730175857742,0.11549602,71162.0,71161.0,0.012]
[1730175859353,0.18643043,71162.0,71161.0,0.012]
[1730175859647,0.2368801,71162.0,71161.0,0.012]
[1730175864853,0.14325541,71162.0,71161.0,0.012]
[1730175865054,0.14325541,71162.0,71161.0,0.3728]
[1730175871751,0.18643083,71162.0,71161.0,0.3728]
[1730175871951,0.18643082,71162.0,71161.0,0.3728]
[1730175875762,0.18643091,71162.0,71161.0,0.3728]
[1730175876260,0.23688115,71162.0,71161.0,0.3728]
[1730175879055,0.19370565,71162.0,71161.0,0.3728]
[1730175879258,0.14325541,71162.0,71161.0,0.3728]
[1730175883663,0.07293441,71162.0,71161.0,0.3728]
[1730175889368,0.1161101,71162.0,71161.0,0.3728]
[1730175889668,0.27085907,71162.0,71161.0,0.3728]
[1730175890268,0.32130953,71162.0,71161.0,0.3728]
[1730175891559,0.27085907,71162.0,71161.0,0.3728]
[1730175891754,0.1161101,71162.0,71161.0,0.3728]
[1730175893662,0.11611009,71162.0,71161.0,0.3728]
[1730175894273,0.07293441,71162.0,71161.0,0.3728]
[1730175895467,0.14325541,71162.0,71161.0,0.3728]
[1730175905978,0.072321,71162.0,71161.0,0.3728]
[1730175909469,0.11549723,71162.0,71161.0,0.3728]
[1730175910685,0.04517623,71162.0,71161.0,0.443122]
[1730175913971,0.04517623,71162.0,71161.0,0.3728]
[1730175914986,0.04517623,71162.0,71161.0,0.443122]
[1730175917280,0.002,71162.0,71161.0,0.443122]
[1730175924486,0.04517195,71162.0,71161.0,0.443122]
[1730175925790,0.04517195,71162.0,71161.0,0.864682]
[1730175925791,0.07961383,71162.0,71161.0,0.864682]
[1730175925984,1e-08,71162.0,71161.0,0.864682]
[1730175926181,1e-08,71162.0,71161.0,1.18316985]
[1730175927489,1e-08,71162.0,71161.0,1.48316985]
[1730175928885,1e-08,71162.0,71161.0,1.55410426]
[1730175929080,1e-08,71162.0,71161.0,1.25410426]
[1730175930879,1e-08,71162.0,71161.0,1.14666426]
[1730175931080,1e-08,71162.0,71161.0,1.25410426]
[1730175932383,0.15455431,71169.0,71168.0,0.070316]
[1730175932588,0.070309,71175.0,71173.0,0.07031]
[1730175932792,0.070309,71175.0,71174.0,0.43173441]
[1730175934398,0.073309,71175.0,71174.0,0.43173441]
[1730175934695,0.073309,71175.0,71174.0,0.50204441]
[1730175935805,0.077309,71175.0,71174.0,0.50204441]
[1730175936394,0.077309,71175.0,71174.0,0.52685944]
[1730175937489,0.007,71175.0,71174.0,0.52685944]
[1730175945297,0.007,71175.0,71174.0,0.50204441]
[1730175945699,0.007,71175.0,71174.0,0.43111]
[1730175945895,0.07793441,71175.0,71174.0,0.43111]
[1730175947410,0.05016659,71175.0,71174.0,0.43111]
[1730175951592,0.12047559,71175.0,71174.0,0.43111]
[1730175951799,0.12047539,71175.0,71174.0,0.43111]
[1730175951998,0.1914098,71175.0,71174.0,0.43111]
[1730175952411,0.24184938,71175.0,71174.0,0.43111]
[1730175954619,0.14824341,71175.0,71174.0,0.43111]
[1730175955706,0.21917782,71175.0,71174.0,0.3608]
[1730175955910,0.14824341,71175.0,71174.0,0.3608]
[1730175959607,0.64065782,71175.0,71174.0,0.3608]
[1730175959803,0.68382655,71175.0,71174.0,0.3608]
[1730175960001,0.61289214,71175.0,71174.0,0.3608]
[1730175960209,0.19141214,71175.0,71174.0,0.3608]
[1730175960410,0.14824341,71175.0,71174.0,0.3608]
[1730175961214,0.17337243,71175.0,71174.0,0.3608]
[1730175961604,0.10243802,71175.0,71174.0,0.3608]
[1730175961800,0.17337243,71175.0,71174.0,0.3608]
[1730175962120,0.10243802,71175.0,71174.0,0.3608]
[1730175962309,0.17337243,71175.0,71174.0,0.3608]
[1730175962618,0.21654231,71175.0,71174.0,0.3608]
[1730175962922,0.26698597,71175.0,71174.0,0.3608]
[1730175964520,0.37236208,71175.0,71174.0,0.3608]
[1730175964826,0.37236243,71175.0,71174.0,0.3608]
[1730175965005,0.37236324,71175.0,71174.0,0.3608]
[1730175965205,0.33792128,71175.0,71174.0,0.3608]
[1730175965406,0.37236381,71175.0,71174.0,0.3608]
[1730175967214,0.79384381,71175.0,71174.0,0.3608]
[1730175969417,0.70895762,71175.0,71174.0,0.3608]
[1730175975230,0.70895896,71175.0,71174.0,0.3608]
[1730175977426,0.75940524,71175.0,71174.0,0.3608]
[1730175979618,0.75940524,71175.0,71168.0,0.3608]
[1730175979619,0.070315,71169.0,71168.0,0.3608]
[1730175979826,0.29138274,71169.0,71168.0,0.3608]
[1730175980024,0.34182902,71169.0,71168.0,0.3608]
[1730175980227,0.83428343,71169.0,71159.0,0.36290789]
[1730175980439,0.21219182,71160.0,71159.0,0.36290789]
[1730175980621,0.30581143,71160.0,71159.0,0.36290789]
[1730175981824,0.23487702,71160.0,71159.0,0.36290789]
[1730175982024,0.30581143,71160.0,71159.0,0.36290789]
[1730175982227,0.23487702,71160.0,71159.0,0.36290789]
[1730175982432,0.23487702,71160.0,71159.0,0.36390789]
[1730175982931,0.260041,71160.0,71159.0,0.36390789]
[1730175983132,0.260041,71160.0,71159.0,0.36590789]
[1730175983836,0.260041,71160.0,71159.0,0.36290789]
[1730175984134,0.260041,71160.0,71159.0,0.36490789]
[1730175984739,0.20075342,71160.0,71159.0,0.3628]
[1730175986232,0.15757506,71160.0,71159.0,0.3608]
[1730175986538,0.15757506,71160.0,71159.0,0.3638]
[1730175987228,0.2007532,71160.0,71159.0,0.003]
[1730175987435,0.2007532,71160.0,71159.0,0.3638]
[1730175988346,0.15757506,71160.0,71159.0,0.3638]
[1730175989527,0.15757506,71160.0,71159.0,0.3618]
[1730175989825,0.15757506,71160.0,71159.0,0.3638]
[1730175991128,0.15757506,71160.0,71159.0,0.3618]
[1730175991328,0.15757506,71160.0,71159.0,0.3638]
[1730175992728,0.15757506,71160.0,71159.0,0.3618]
[1730175992929,0.15757506,71160.0,71159.0,0.3638]
[1730175993940,0.15757506,71160.0,71159.0,0.3608]
[1730175994132,0.15757506,71160.0,71159.0,0.3638]
[1730175995139,0.15757506,71160.0,71159.0,0.003]
[1730175996332,0.15757506,71160.0,71159.0,0.002]
[1730175996537,0.15757506,71160.0,71159.0,0.004]
[1730175997237,0.15757506,71160.0,71159.0,0.002]
[1730175997238,0.21966314,71160.0,71159.0,0.002]
[1730175997443,0.070327,71157.0,71155.0,0.42686]
[1730175997628,0.06208808,71156.0,71155.0,0.4261]
[1730175998240,0.12417616,71156.0,71155.0,0.4261]
[1730175998540,0.06208808,71156.0,71155.0,0.4261]
[1730175999545,0.10526903,71156.0,71155.0,0.4291]
[1730175999745,0.10626903,71156.0,71155.0,0.4311]
[1730176000648,0.17659603,71156.0,71155.0,0.4311]
[1730176007044,0.18914071,71156.0,71155.0,0.4311]
[1730176007545,0.19550316,71156.0,71155.0,0.4311]
[1730176008443,0.19550316,71156.0,71155.0,0.4291]
[1730176008444,0.19450316,71156.0,71155.0,0.4291]
[1730176008641,0.19550316,71156.0,71155.0,0.4311]
[1730176009235,0.19550316,71156.0,71155.0,0.4281]
[1730176009440,0.19450316,71156.0,71155.0,0.4291]
[1730176009650,0.19450316,71156.0,71155.0,0.4311]
[1730176009651,0.19550316,71156.0,71155.0,0.4311]
[1730176010351,0.19550316,71156.0,71155.0,0.3658]
[1730176014354,0.13341508,71156.0,71155.0,0.3658]
[1730176014554,0.19550316,71156.0,71155.0,0.3658]
[1730176014749,0.28914129,71156.0,71155.0,0.3658]
[1730176017456,0.22705321,71156.0,71155.0,0.3658]
[1730176017655,0.1765963,71156.0,71155.0,0.3658]
[1730176019553,0.33129752,71156.0,71155.0,0.3658]
[1730176019754,0.36574796,71156.0,71155.0,0.3658]
[1730176020852,0.26150365,71156.0,71155.0,0.3658]
[1730176022156,0.21104674,71156.0,71155.0,0.3658]
[1730176022659,0.13341508,71156.0,71155.0,0.3658]
[1730176029667,0.16786557,71156.0,71155.0,0.3658]
[1730176031264,0.16786557,71156.0,71155.0,0.005]
[1730176031464,0.16786557,71156.0,71155.0,0.3658]
[1730176031767,0.16787027,71156.0,71155.0,0.3658]
[1730176036460,0.10577749,71156.0,71155.0,0.3658]
[1730176036660,0.16787027,71156.0,71155.0,0.3658]
[1730176037461,0.16787014,71156.0,71155.0,0.3658]
[1730176037662,0.21105133,71156.0,71155.0,0.3658]
[1730176042282,0.21104748,71156.0,71155.0,0.3658]
[1730176042680,0.21104497,71156.0,71155.0,0.3658]
[1730176044578,0.1489547,71156.0,71155.0,0.42789027]
[1730176044790,0.1489547,71156.0,71155.0,0.3658]
[1730176044791,0.10577565,71156.0,71155.0,0.3658]
[1730176045695,0.16786592,71156.0,71155.0,0.3658]
[1730176047088,0.16786549,71156.0,71155.0,0.3658]
[1730176049188,0.16786545,71156.0,71155.0,0.3658]
[1730176051087,0.10577518,71156.0,71155.0,0.3658]
[1730176051288,0.071327,71156.0,71155.0,0.3658]
[1730176052190,0.10577455,71156.0,71155.0,0.3658]
[1730176052799,0.14895213,71156.0,71155.0,0.3658]
[1730176055393,0.2110424,71156.0,71155.0,0.3658]
[1730176059797,0.16786482,71156.0,71155.0,0.3658]
[1730176062007,0.16786558,71156.0,71155.0,0.3658]
[1730176065499,0.13341727,71156.0,71155.0,0.3658]
[1730176066101,0.16786774,71156.0,71155.0,0.005]
[1730176066311,0.22995801,71156.0,71155.0,0.005]
[1730176066700,0.16786774,71156.0,71155.0,0.005]
[1730176067908,0.21104995,71156.0,71155.0,0.005]
[1730176069403,0.27314022,71156.0,71155.0,0.005]
[1730176069601,0.26150802,71156.0,71155.0,0.005]
[1730176070608,0.21104995,71156.0,71155.0,0.005]
[1730176074100,0.13972295,71156.0,71153.0,0.3608]
[1730176074306,0.070329,71154.0,71153.0,0.3608]
[1730176074499,0.14796168,71154.0,71153.0,0.3608]
[1730176075303,0.16686974,71154.0,71153.0,0.3608]
[1730176075704,0.16786974,71154.0,71153.0,0.3628]
[1730176076005,0.16786974,71154.0,71153.0,0.3638]
[1730176076814,0.16786974,71154.0,71153.0,0.3658]
[1730176078607,0.1928769,71154.0,71153.0,0.3658]
[1730176078918,0.19288052,71154.0,71153.0,0.3658]
[1730176080714,0.15843005,71154.0,71153.0,0.3658]
[1730176080903,0.19288223,71154.0,71153.0,0.3658]
[1730176081519,0.25497612,71154.0,71153.0,0.3658]
[1730176081820,0.22052394,71154.0,71153.0,0.3658]
[1730176083216,0.21952394,71154.0,71153.0,0.3628]
[1730176083410,0.21952394,71154.0,71153.0,0.3648]
[1730176084910,0.21952394,71154.0,71153.0,0.3628]
[1730176085121,0.21952394,71154.0,71153.0,0.3648]
[1730176086526,0.15743005,71154.0,71153.0,0.3648]
[1730176087523,0.21952394,71154.0,71153.0,0.3648]
[1730176089225,0.2539764,71154.0,71153.0,0.3648]
[1730176089916,0.3476205,71154.0,71153.0,0.3648]
[1730176094928,0.3476205,71154.0,71153.0,0.004]
[1730176096926,0.29716037,71154.0,71153.0,0.004]
[1730176097141,0.17297259,71154.0,71153.0,0.004]
[1730176097331,0.2539764,71154.0,71153.0,0.004]
[1730176097535,0.25397669,71154.0,71153.0,0.004]
[1730176098428,0.29716026,71154.0,71153.0,0.004]
[1730176099225,0.22683126,71154.0,71153.0,0.004]
[1730176099827,0.18364769,71154.0,71153.0,0.004]
[1730176102325,0.05945991,71154.0,71153.0,0.004]
[1730176102526,0.18364769,71154.0,71153.0,0.004]
[1730176103638,0.1215538,71154.0,71153.0,0.004]
[1730176103942,0.1215538,71154.0,71153.0,0.07433]
[1730176104237,0.0215538,71154.0,71153.0,0.07433]
[1730176105636,0.06209389,71154.0,71153.0,0.07433]
[1730176106429,0.12418778,71154.0,71153.0,0.07433]
[1730176106737,0.06209389,71154.0,71153.0,0.07433]
[1730176107242,0.12418778,71154.0,71153.0,0.07433]
[1730176107435,0.06209389,71154.0,71153.0,0.07433]
[1730176112160,0.09654507,71154.0,71153.0,0.07433]
[1730176113034,0.1397273,71154.0,71153.0,0.07433]
[1730176119441,0.13972729,71154.0,71153.0,0.07433]
[1730176120042,0.09654507,71154.0,71153.0,0.07433]
[1730176124451,0.09654489,71154.0,71153.0,0.07433]
[1730176125656,0.15863878,71154.0,71153.0,0.07433]
[1730176126154,0.09654489,71154.0,71153.0,0.07433]
[1730176126544,0.09654519,71154.0,71153.0,0.07433]
[1730176127157,0.034451,71154.0,71153.0,0.07433]
[1730176127349,0.09654519,71154.0,71153.0,0.07433]
[1730176127956,0.13972801,71154.0,71153.0,0.07433]
[1730176129460,0.13972808,71154.0,71153.0,0.07433]
[1730176131555,0.13972808,71154.0,71143.0,0.431859]
[1730176131556,0.3134831,71154.0,71143.0,0.43186]
[1730176131860,0.06209419,71144.0,71143.0,0.43114]
[1730176132063,0.09654791,71144.0,71143.0,0.43114]
[1730176132263,0.13973331,71144.0,71143.0,0.43114]
[1730176132559,0.13973331,71144.0,71143.0,0.3608]
[1730176132560,0.2018275,71144.0,71143.0,0.3608]
[1730176132867,0.50053331,71144.0,71138.0,0.00210837]
[1730176133052,0.18286621,71140.0,71139.0,0.070344]
[1730176133247,0.26050533,71140.0,71139.0,0.070344]
[1730176133454,0.26044114,71140.0,71139.0,0.070344]
[1730176133657,0.32253533,71140.0,71139.0,0.070344]
[1730176133860,0.13973331,71140.0,71139.0,0.070344]
[1730176134057,0.13974063,71140.0,71139.0,0.070344]
[1730176134457,0.27930133,71140.0,71139.0,0.070344]
[1730176134762,0.3224908,71140.0,71139.0,0.070344]
[1730176134964,0.28030133,71140.0,71139.0,0.071344]
[1730176135150,0.28030133,71140.0,71139.0,0.079344]
[1730176135151,0.28130133,71140.0,71139.0,0.079344]
[1730176135352,0.03645697,71140.0,71139.0,0.079344]
[1730176135555,0.002,71140.0,71139.0,0.079344]
[1730176135752,0.002,71140.0,71139.0,0.21003819]
[1730176135956,0.002,71140.0,71139.0,0.27823819]
[1730176137554,0.002,71140.0,71139.0,0.27824055]
[1730176137864,0.3608,71151.0,71150.0,0.070333]
[1730176138958,0.3638,71151.0,71150.0,0.070333]
[1730176140464,0.3608,71151.0,71150.0,0.072333]
[1730176140670,0.3608,71151.0,71150.0,0.073333]
[1730176142662,0.39525157,71151.0,71150.0,0.073333]
[1730176143071,0.48889244,71151.0,71150.0,0.073333]
[1730176143374,0.07763405,71151.0,71150.0,0.13542955]
[1730176145269,0.07763405,71151.0,71150.0,0.073333]
[1730176145459,0.07763405,71151.0,71150.0,0.09887408]
[1730176146166,0.07763405,71151.0,71150.0,0.16727408]
[1730176146571,0.07763405,71151.0,71150.0,0.141733]
[1730176149568,0.1397306,71151.0,71150.0,0.141733]
[1730176150073,0.06209655,71151.0,71150.0,0.141733]
[1730176154474,0.06209655,71154.0,71150.0,0.0714]
[1730176154679,0.55124836,71161.0,71150.0,0.0714]
[1730176154680,0.55208836,71161.0,71150.0,0.0714]
[1730176154870,0.06209655,71153.0,71150.0,0.0714]
[1730176155076,0.06209655,71153.0,71152.0,0.070331]
[1730176155376,0.09654609,71153.0,71152.0,0.070331]
[1730176156884,0.09654609,71153.0,71152.0,0.071331]
[1730176157081,0.13972779,71153.0,71152.0,0.071331]
[1730176157585,0.13972779,71153.0,71152.0,0.072331]
[1730176158883,0.13972779,71153.0,71152.0,0.073331]
[1730176161086,0.07763124,71153.0,71152.0,0.073331]
[1730176165188,0.06209655,71156.0,71154.0,0.070329]
[1730176165392,0.06209655,71156.0,71155.0,0.070328]
[1730176165688,0.09654579,71156.0,71155.0,0.070328]
[1730176166489,0.06209655,71156.0,71155.0,0.070328]
[1730176166690,0.06209655,71156.0,71155.0,0.071328]
[1730176167395,0.06209655,71158.0,71156.0,0.070327]
[1730176168092,0.06209655,71158.0,71155.0,0.001]
[1730176168289,0.06209655,71158.0,71157.0,0.070326]
[1730176168796,0.06409655,71158.0,71157.0,0.070326]
[1730176170197,0.06509655,71158.0,71157.0,0.070326]
[1730176170391,0.003,71158.0,71157.0,0.070326]
[1730176170697,0.002,71158.0,71157.0,0.070326]
[1730176170894,0.003,71158.0,71157.0,0.070326]
[1730176175098,0.003,71158.0,71157.0,0.13242255]